[Event "GER Cup Teams 2019"]
[Site "Wolfhagen"]
[Date "2019.03.16"]
[Round "1.1"]
[White "Schmid, Roland"]
[Black "Zuferi, Enis"]
[Result "1-0"]
[ECO "A34"]
[WhiteElo "2282"]
[BlackElo "2369"]
[Annotator "NA"]
[PlyCount "67"]
[EventDate "2019.03.16"]
[EventType "team-tourn"]
[EventCountry "GER"]
[SourceTitle "playchess.com"]
[Source "ChessBase"]
[SourceQuality "1"]
[TimeControl "40/6000+30:3000+30"]

1. Nf3 {[%emt 0:00:00]} Nf6 {[%emt 0:00:00]} 2. c4 {[%emt 0:00:00]} c5 {[%emt 0:00:00]} 3. Nc3 {[%emt 0:00:04]} d5 {[%emt 0:00:00]} 4. cxd5 {[%emt 0:00:06]} Nxd5 {[%emt 0:00:00]} 5. d4 {[%emt 0:00:08]} cxd4 {[%emt 0:02:52]} 6. Qxd4 {[%emt 0:00:08]} Nxc3 {[%emt 0:00:14]} 7. Qxc3 {[%emt 0:00:06]} Nc6 {[%emt 0:01:03]} 8. e4 {[%emt 0:02:43]} Bg4 {[%emt 0:08:30]} 9. Bb5 {[%emt 0:03:29] A34: Symmetrical English: 2 Nc3, lines with ...d5} Rc8 {[%emt 0:16:33]} 10. Be3 {[%emt 0:10:02]} a6 {[%emt 0:02:30]} 11. Rd1 {[%emt 0:11:57]} Qc7 {[%emt 0:07:20]} 12. Ba4 {[%emt 0:11:15]} e5 $146 {[%emt 0:17:17]} ({Predecessor:} 12... b5 13. Bb3 e6 14. O-O Bxf3 15. gxf3 Bd6 16. Qxg7 Bxh2+ {1-0 (41) Topalov,V (2640)-Beliavsky,A (2650) Linares 1994}) 13. Bxc6+ {[%emt 0:05:51]} bxc6 {[%emt 0:00:19]} 14. Rc1 {[%emt 0:00:26]} Bxf3 {[%emt 0:07:07]} 15. gxf3 {[%emt 0:01:18]} Bd6 {[%emt 0:04:01]} 16. Rg1 {[%emt 0:19:55]} g6 {[%emt 0:15:05]} 17. Qc4 {[%emt 0:05:29]} Qa5+ {[%emt 0:03:18]} 18. Ke2 {[%emt 0:06:25]} O-O {[%emt 0:01:00]} 19. Rgd1 {[%emt 0:04:54]} Be7 {[%emt 0:12:58]} 20. Rd7 {[%emt 0:08:26]} Bh4 {[%emt 0:05:16]} 21. Bc5 {[%emt 0:02:34]} Rb8 {[%emt 0:01:39]} 22. Rc2 {[%emt 0:06:28]} Rbd8 {[%emt 0:02:25]} 23. Rcd2 {[%emt 0:00:47]} Bg5 {[%emt 0:00:09]} 24. R2d3 {[%emt 0:01:49]} h5 {[%emt 0:01:07]} 25. Bxf8 {[%emt 0:02:24]} Rxf8 {[%emt 0:00:04]} 26. Ra3 {[%emt 0:01:44]} (26. Rb3 $142) 26... Qb6 $2 {[%emt 0:00:02]} (26... Qb5 27. Qxb5 axb5) 27. Rb3 {[%emt 0:00:15]} Qa5 {[%emt 0:00:03]} 28. Rbb7 {[%emt 0:00:34]} h4 {[%emt 0:00:35]} 29. b4 {[%emt 0:02:11]} (29. Rxf7 $142 Qd2+ 30. Kf1 Qd1+ 31. Kg2 h3+ 32. Kxh3 Qf1+ 33. Qxf1 Rxf7 34. Qc4) 29... Qa3 {[%emt 0:00:02]} 30. Rxf7 {[%emt 0:00:29]} Qb2+ {[%emt 0:00:37]} 31. Kf1 {[%emt 0:00:08]} Qb1+ {[%emt 0:00:13]} 32. Kg2 {[%emt 0:00:06]} h3+ {[%emt 0:00:33]} 33. Kxh3 {[%emt 0:00:06]} Qf1+ {[%emt 0:00:14]} 34. Qxf1 1-0

[Event "GER Cup Teams 2019"]
[Site "Wolfhagen"]
[Date "2019.03.16"]
[Round "1.2"]
[White "Schmidt, Tobias"]
[Black "Quast, Michael"]
[Result "1/2-1/2"]
[ECO "B07"]
[WhiteElo "2266"]
[BlackElo "2308"]
[Annotator "NA"]
[PlyCount "64"]
[EventDate "2019.03.16"]
[EventType "team-tourn"]
[EventCountry "GER"]
[SourceTitle "playchess.com"]
[Source "ChessBase"]
[SourceQuality "1"]
[TimeControl "40/6000+30:3000+30"]

1. e4 {[%emt 0:00:00]} d6 {[%emt 0:00:00]} 2. d4 {[%emt 0:00:00]} Nf6 {[%emt 0:00:00]} 3. Nc3 {[%emt 0:00:00]} Nbd7 {[%emt 0:00:00]} 4. f4 {[%emt 0:00:02]} e5 {[%emt 0:00:00]} 5. Nf3 {[%emt 0:00:05]} exd4 {[%emt 0:00:00]} 6. Qxd4 {[%emt 0:00:08]} c6 $14 {[%emt 0:00:00]} 7. Be3 {[%emt 0:04:51]} d5 {[%emt 0:00:23]} 8. e5 {[%emt 0:02:45]} Ng4 {[%emt 0:02:52]} 9. Bg1 {[%emt 0:00:44]} Bc5 {[%emt 0:09:13]} 10. Qd2 {[%emt 0:01:24]} Bxg1 {[%emt 0:02:58]} 11. Rxg1 {[%emt 0:00:40]} Qb6 {[%emt 0:04:10]} 12. Na4 {[%emt 0:38:52]} Qe3+ {[%emt 0:02:14]} 13. Qxe3 {[%emt 0:01:44]} Nxe3 {[%emt 0:00:07]} 14. Kd2 {[%emt 0:01:24]} Nxf1+ {[%emt 0:02:48]} 15. Raxf1 {[%emt 0:00:21]} b5 {[%emt 0:03:48]} 16. Nc3 {[%emt 0:00:21]} b4 {[%emt 0:09:13]} 17. Ne2 {[%emt 0:06:35]} c5 {[%emt 0:02:36]} 18. f5 {[%emt 0:15:24]} Nb6 {[%emt 0:03:38]} 19. g4 {[%emt 0:00:31]} Nc4+ {[%emt 0:15:42]} 20. Kc1 {[%emt 0:00:12]} Ne3 {[%emt 0:01:09]} 21. Re1 {[%emt 0:04:45]} d4 {[%emt 0:02:21]} 22. Ng5 {[%emt 0:02:52]} h5 {[%emt 0:10:13]} 23. Ne4 {[%emt 0:07:14]} hxg4 {[%emt 0:04:33]} 24. Nxc5 {[%emt 0:00:26]} Nxf5 {[%emt 0:00:59]} 25. Rxg4 {[%emt 0:06:02]} Rxh2 {[%emt 0:08:50]} 26. Nxd4 {[%emt 0:00:18]} Nxd4 {[%emt 0:00:11]} 27. Rxd4 {[%emt 0:00:02]} Bf5 {[%emt 0:01:50]} 28. Ne4 {[%emt 0:01:30]} Bxe4 {[%emt 0:01:12]} 29. Rexe4 {[%emt 0:00:06]} a5 30. Rg4 Kf8 {[%emt 0:06:44]} 31. Rd2 {[%emt 0:10:37]} Rh1+ {[%emt 0:00:13]} 32. Rd1 {[%emt 0:00:02]} Rh2 {[%emt 0:00:06]} 1/2-1/2

[Event "GER Cup Teams 2019"]
[Site "Wolfhagen"]
[Date "2019.03.16"]
[Round "1.3"]
[White "Pogan, Nikolas"]
[Black "Pohl-Kuemmel, Jens-Uwe"]
[Result "1-0"]
[ECO "E67"]
[WhiteElo "2270"]
[BlackElo "2302"]
[Annotator "NA"]
[PlyCount "93"]
[EventDate "2019.03.16"]
[EventType "team-tourn"]
[EventCountry "GER"]
[SourceTitle "playchess.com"]
[Source "ChessBase"]
[SourceQuality "1"]
[WhiteTeam "Heilbronn"]
[BlackTeam "Regensburg"]
[TimeControl "40/6000+30:3000+30"]

1. d4 {[%emt 0:00:00]} d6 {[%emt 0:00:00]} 2. Nf3 {[%emt 0:00:00]} g6 {[%emt 0:00:00]} 3. g3 {[%emt 0:00:00]} Bg7 {[%emt 0:00:02]} 4. Bg2 {[%emt 0:00:00]} Nf6 {[%emt 0:00:17]} 5. c4 {[%emt 0:00:00]} O-O {[%emt 0:00:26]} 6. Nc3 {[%emt 0:00:02]} Nbd7 {[%emt 0:00:42]} 7. O-O {[%emt 0:00:06]} e5 {[%emt 0:00:30]} 8. h3 {[%emt 0:01:14]} Re8 {[%emt 0:02:59]} 9. e4 {[%emt 0:00:46]} a6 {[%emt 0:01:40]} 10. Re1 {[%emt 0:01:04]} c6 {[%emt 0:01:36]} 11. a4 {[%emt 0:07:13] E69: King's Indian: Fianchetto: 6...Nbd7 7 0-0 e5 8 e4 c6 9 h3} (11. a3 exd4 12. Nxd4 Nc5 13. b4 Ncd7 14. f4 Nh5 15. Kh2 f5 16. Be3 fxe4 17. Nxe4 Ndf6 18. Nc3 Nd7 {0-1 (65) Vasquez Schroder,R (2542)-Bologan,V (2672) Khanty-Mansiysk 2013}) 11... a5 {[%emt 0:02:23]} 12. Be3 {[%emt 0:02:53]} exd4 {[%emt 0:09:03]} 13. Nxd4 {[%emt 0:00:16]} Nc5 {[%emt 0:01:43]} 14. Qc2 {[%emt 0:01:35]} Nfd7 {[%emt 0:06:56]} 15. Rad1 {[%emt 0:02:04]} Qb6 {[%emt 0:03:31] [#]} 16. Bf1 $146 {[%emt 0:12:58]} ({Predecessor:} 16. f4 Qb4 17. Bf1 Ra6 18. Na2 Qb6 {½-½ (55) Valsecchi,A (2508)-Apaydin,F (2262) Antalya 2017}) 16... Qb4 {[%emt 0:16:46]} 17. Kh2 {[%emt 0:21:13]} h5 {[%emt 0:12:15]} 18. f4 {[%emt 0:07:30]} Nf6 {[%emt 0:02:24]} 19. Bf2 {[%emt 0:08:40]} Bd7 {[%emt 0:05:27]} 20. e5 {[%emt 0:25:49]} dxe5 {[%emt 0:10:45]} 21. fxe5 {[%emt 0:00:04]} Nh7 {[%emt 0:00:23]} 22. Na2 {[%emt 0:00:54]} Qxa4 {[%emt 0:00:57]} 23. Qxa4 {[%emt 0:02:42]} Nxa4 {[%emt 0:00:07]} 24. b3 {[%emt 0:00:01]} Nb2 {[%emt 0:03:36]} 25. Rd2 {[%emt 0:00:34]} Rxe5 {[%emt 0:05:22]} 26. Rxe5 {[%emt 0:01:09]} Bxe5 {[%emt 0:00:07]} 27. Nf3 {[%emt 0:00:20]} Bf6 {[%emt 0:03:53]} 28. Rxd7 {[%emt 0:00:17]} a4 {[%emt 0:00:19]} 29. b4 {[%emt 0:01:06]} a3 {[%emt 0:01:24]} 30. Rxb7 {[%emt 0:04:33]} Nd1 {[%emt 0:01:09]} 31. Bd4 {[%emt 0:02:59]} Ng5 {[%emt 0:06:30]} 32. Bxf6 {[%emt 0:03:25]} Nxf3+ {[%emt 0:00:06]} 33. Kh1 {[%emt 0:00:49]} Re8 {[%emt 0:01:18] [#]} 34. Be2 $1 {[%emt 0:00:58]} Nf2+ {[%emt 0:02:02]} 35. Kg2 {[%emt 0:00:06]} Ne4 {[%emt 0:00:05]} 36. Bxf3 {[%emt 0:01:58]} Nxf6 {[%emt 0:00:05]} 37. Ra7 {[%emt 0:01:16]} Re3 {[%emt 0:00:12]} 38. Ra8+ {[%emt 0:01:18]} Kg7 {[%emt 0:00:07]} 39. Kf2 {[%emt 0:00:44]} Rb3 {[%emt 0:00:16]} 40. Bxc6 {[%emt 0:00:29]} Rb2+ {[%emt 0:01:19]} 41. Ke3 {[%emt 0:50:01]} Rxa2 {[%emt 0:50:48]} 42. Kd4 {[%emt 0:00:00]} g5 {[%emt 0:00:00]} 43. b5 {[%emt 0:00:00]} h4 {[%emt 0:00:00]} 44. gxh4 {[%emt 0:00:00]} gxh4 {[%emt 0:00:00]} 45. b6 {[%emt 0:00:00]} Rb2 $18 {[%emt 0:00:00]} 46. b7 {[%emt 0:00:00]} a2 {[%emt 0:00:00]} 47. Rxa2 {[%emt 0:00:00]} 1-0

[Event "GER Cup Teams 2019"]
[Site "Wolfhagen"]
[Date "2019.03.16"]
[Round "1.4"]
[White "Werner, Claus"]
[Black "Stuermer, Robin"]
[Result "1-0"]
[ECO "B10"]
[WhiteElo "2200"]
[BlackElo "2195"]
[Annotator "NA"]
[PlyCount "53"]
[EventDate "2019.03.16"]
[EventType "team-tourn"]
[EventCountry "GER"]
[SourceTitle "playchess.com"]
[Source "ChessBase"]
[SourceQuality "1"]
[TimeControl "40/6000+30:3000+30"]

1. e4 {[%emt 0:00:00]} c6 {[%emt 0:00:00]} 2. d3 {[%emt 0:01:22]} d5 {[%emt 0:00:18]} 3. Nd2 {[%emt 0:00:05]} g6 {[%emt 0:01:53]} 4. Ngf3 {[%emt 0:05:31]} Bg7 {[%emt 0:00:11]} 5. g3 {[%emt 0:00:33]} e5 {[%emt 0:06:43]} 6. Bg2 {[%emt 0:01:28]} Ne7 {[%emt 0:01:59]} 7. O-O $11 {[%emt 0:00:18]} O-O {[%emt 0:00:06]} 8. Re1 {[%emt 0:00:41]} Qc7 {[%emt 0:01:23]} 9. exd5 {[%emt 0:07:54]} cxd5 {[%emt 0:00:39]} 10. c4 {[%emt 0:00:25]} dxc4 {[%emt 0:12:11]} 11. Nxc4 {[%emt 0:02:28]} Nbc6 {[%emt 0:00:16]} 12. Bd2 {[%emt 0:04:05]} Be6 {[%emt 0:06:55]} 13. Rc1 {[%emt 0:04:35]} Qb8 {[%emt 0:16:39]} 14. b4 {[%emt 0:17:16]} Rd8 {[%emt 0:26:53]} 15. b5 {[%emt 0:04:21]} Nd4 {[%emt 0:00:54]} 16. Nfxe5 {[%emt 0:01:10]} Bd5 {[%emt 0:00:20]} 17. Bf4 {[%emt 0:02:52]} Bxg2 {[%emt 0:00:09]} 18. Kxg2 {[%emt 0:05:39]} Nd5 {[%emt 0:00:28]} 19. Nxg6 {[%emt 0:01:28]} Nxf4+ {[%emt 0:01:54]} 20. Nxf4 {[%emt 0:00:14]} b6 {[%emt 0:00:21]} 21. Re7 {[%emt 0:05:03]} Kf8 {[%emt 0:03:19]} 22. Qe1 {[%emt 0:11:47]} Bf6 {[%emt 0:00:23]} 23. Re4 {[%emt 0:01:06]} Qb7 {[%emt 0:01:57]} 24. f3 {[%emt 0:04:16]} Rd7 {[%emt 0:05:39]} 25. Qe3 {[%emt 0:01:07]} Nxb5 {[%emt 0:03:42]} 26. Nh5 {[%emt 0:01:01]} Bd4 {[%emt 0:05:43]} 27. Qh6+ {[%emt 0:01:20]} 1-0

[Event "GER Cup Teams 2019"]
[Site "Wolfhagen"]
[Date "2019.03.16"]
[Round "1.6"]
[White "Zuferi, Enis"]
[Black "Schmid, Roland"]
[Result "*"]
[ECO "A56"]
[WhiteElo "2369"]
[BlackElo "2282"]
[Annotator "NA"]
[PlyCount "23"]
[EventDate "2019.03.16"]
[EventType "team-tourn"]
[EventCountry "GER"]
[SourceTitle "playchess.com"]
[Source "ChessBase"]
[SourceQuality "1"]
[TimeControl "40/6000+30:3000+30"]

{[%evp 12,23,58,35,66,32767,36,32767,32767,32767,32767,47,32767,44]} 1. d4 {[%emt 0:00:00]} Nf6 {[%emt 0:00:00]} 2. c4 {[%emt 0:00:00]} c5 {[%emt 0:00:00]} 3. d5 {[%emt 0:00:00]} g6 {[%emt 0:00:00]} 4. Nc3 {[%emt 0:01:13]} Bg7 {[%emt 0:00:00]} 5. e4 {[%emt 0:02:06]} d6 {[%emt 0:00:04]} 6. Bd3 {[%emt 0:01:05]} e6 {[%emt 0:01:50]} 7. h3 {[%emt 0:01:56]} O-O {[%emt 0:00:20]} 8. Nf3 {[%emt 0:00:04]} exd5 {[%emt 0:02:15]} 9. exd5 {[%emt 0:00:05]} Re8+ {[%emt 0:00:05]} 10. Be3 {[%emt 0:00:04]} Nbd7 {[%emt 0:00:07]} 11. O-O {[%emt 0:00:16]} a6 {[%emt 0:00:05]} 12. a4 $14 {[%emt 0:01:24]} *

[Event "GER Cup Teams 2019"]
[Site "Wolfhagen"]
[Date "2019.05.18"]
[Round "3"]
[White "Sawlin, Leonid"]
[Black "Onischuk, Vladimir"]
[Result "0-1"]
[ECO "B09"]
[WhiteElo "2394"]
[BlackElo "2633"]
[Annotator "RC"]
[PlyCount "110"]
[EventDate "2019.03.16"]
[EventType "team-tourn"]
[EventCountry "GER"]
[SourceTitle "playchess.com"]
[Source "ChessBase"]
[SourceQuality "1"]
[WhiteTeam "SK Zehlendorf"]
[BlackTeam "Sfr. Bad Emstal / Wolfhagen"]
[TimeControl "40/6000+30:3000+30"]

1. e4 {[%emt 0:00:00]} d6 {[%emt 0:00:00]} 2. d4 {[%emt 0:00:00]} Nf6 {[%emt 0:00:00]} 3. Nc3 {[%emt 0:00:00]} g6 {[%emt 0:00:00]} 4. f4 {[%emt 0:00:04]} Bg7 {[%emt 0:00:16]} 5. Nf3 {[%emt 0:00:08]} O-O {[%emt 0:00:09]} 6. Bd3 {[%emt 0:01:06]} Na6 {[%emt 0:00:14]} 7. e5 {[%emt 0:05:01]} Nd7 {[%emt 0:05:10]} 8. e6 {[%emt 0:22:29]} fxe6 {[%emt 0:00:52]} 9. Ng5 {[%emt 0:01:22]} Nf6 {[%emt 0:03:54]} 10. Bc4 {[%emt 0:13:54]} d5 {[%emt 0:03:29]} 11. Bxa6 {[%emt 0:03:52]} bxa6 {[%emt 0:00:07]} 12. Na4 {[%emt 0:02:49]} Qd6 {[%emt 0:56:45]} 13. Be3 {[%emt 0:09:22]} Rb8 {[%emt 0:01:17]} 14. b3 {[%emt 0:01:54]} h6 {[%emt 0:11:26]} 15. Nf3 {[%emt 0:01:27]} Ng4 {[%emt 0:00:43]} 16. Bc1 {[%emt 0:03:09]} Rxf4 {[%emt 0:01:47]} 17. Bxf4 {[%emt 0:00:08]} Qxf4 {[%emt 0:00:03]} 18. Qd2 {[%emt 0:11:20]} Ne3 {[%emt 0:06:19]} 19. Ke2 {[%emt 0:02:15]} Nxg2 {[%emt 0:00:15]} 20. Qxf4 {[%emt 0:00:22]} Nxf4+ {[%emt 0:00:03]} 21. Ke3 {[%emt 0:00:16]} g5 {[%emt 0:03:55]} 22. Nc5 {[%emt 0:05:01]} Ng2+ {[%emt 0:04:10]} 23. Kf2 {[%emt 0:00:53]} Nh4 {[%emt 0:00:25]} 24. Ne5 {[%emt 0:02:32]} Rb6 {[%emt 0:06:27]} 25. Rae1 {[%emt 0:00:58]} a5 {[%emt 0:00:21]} 26. c3 {[%emt 0:02:24]} Rd6 {[%emt 0:00:38]} 27. Rhg1 {[%emt 0:00:39]} Bf6 {[%emt 0:01:10]} 28. Ned3 {[%emt 0:02:43]} Kf7 {[%emt 0:00:18]} 29. Re2 {[%emt 0:02:29]} Rc6 {[%emt 0:00:53]} 30. Rb1 {[%emt 0:02:30]} Ng6 {[%emt 0:01:11]} 31. b4 {[%emt 0:01:32]} axb4 {[%emt 0:00:39]} 32. Rxb4 {[%emt 0:02:05]} Ba6 {[%emt 0:00:35]} 33. Nxa6 {[%emt 0:01:51]} Rxa6 {[%emt 0:00:03]} 34. Nc5 {[%emt 0:01:21]} Rc6 {[%emt 0:01:02]} 35. Ra4 {[%emt 0:00:43]} e5 {[%emt 0:00:22]} 36. Ke3 {[%emt 0:00:53]} Nf4 {[%emt 0:00:48]} 37. Rf2 {[%emt 0:02:06]} Ne6 {[%emt 0:01:29]} 38. Ra5 {[%emt 0:05:25]} exd4+ {[%emt 0:00:27]} 39. cxd4 {[%emt 0:00:04]} Kg6 {[%emt 0:01:02]} 40. Nb3 {[%emt 0:00:13]} Nf4 {[%emt 0:00:34]} 41. Rxa7 {[%emt 0:50:48]} Rc3+ {[%emt 0:09:13]} 42. Kd2 {[%emt 0:00:00]} Rc4 {[%emt 0:00:06]} 43. a4 {[%emt 0:00:00]} Bxd4 {[%emt 0:13:07]} 44. Nxd4 {[%emt 0:00:00]} Rxd4+ {[%emt 0:00:22]} 45. Kc2 {[%emt 0:00:00]} e5 {[%emt 0:01:13]} 46. a5 {[%emt 0:00:00]} e4 {[%emt 0:01:37]} 47. Rxc7 {[%emt 0:00:00]} e3 {[%emt 0:00:43]} 48. Rf1 {[%emt 0:00:00]} e2 {[%emt 0:06:07]} 49. Ra1 {[%emt 0:00:00]} Ra4 {[%emt 0:00:57]} 50. Rxa4 {[%emt 0:00:00]} e1=Q {[%emt 0:00:09]} 51. a6 {[%emt 0:00:00]} Qe2+ {[%emt 0:01:43]} 52. Kb3 {[%emt 0:00:00]} Qb5+ {[%emt 0:00:29]} 53. Ka3 {[%emt 0:00:00]} Nd3 {[%emt 0:00:14]} 54. Rb7 {[%emt 0:00:00]} Qc5+ {[%emt 0:01:50]} 55. Kb3 {[%emt 0:00:00]} Qc6 {[%emt 0:00:34]} 0-1

[Event "GER Cup Teams 2019"]
[Site "Wolfhagen"]
[Date "2019.05.18"]
[Round "3"]
[White "Weber, Max"]
[Black "Movsesian, Sergei"]
[Result "0-1"]
[ECO "E69"]
[WhiteElo "2240"]
[BlackElo "2645"]
[Annotator "RC"]
[PlyCount "92"]
[EventDate "2019.03.16"]
[EventType "team-tourn"]
[EventCountry "GER"]
[SourceTitle "playchess.com"]
[Source "ChessBase"]
[SourceQuality "1"]
[WhiteTeam "Greifswalder SV"]
[BlackTeam "OSG Baden-Baden"]
[TimeControl "40/6000+30:3000+30"]

1. d4 {[%emt 0:00:00]} Nf6 {[%emt 0:00:00]} 2. c4 {[%emt 0:00:00]} d6 {[%emt 0:00:00]} 3. Nf3 {[%emt 0:00:15]} Nbd7 {[%emt 0:00:00]} 4. Nc3 {[%emt 0:01:57]} e5 {[%emt 0:00:26]} 5. e4 {[%emt 0:03:17]} g6 {[%emt 0:01:18]} 6. g3 {[%emt 0:08:01]} Bg7 {[%emt 0:02:07]} 7. Bg2 {[%emt 0:00:09]} O-O {[%emt 0:02:42]} 8. O-O {[%emt 0:00:25]} c6 {[%emt 0:02:21]} 9. h3 {[%emt 0:02:54]} a6 {[%emt 0:00:39]} 10. Re1 {[%emt 0:06:09]} Re8 {[%emt 0:05:04]} 11. Be3 {[%emt 0:03:19]} exd4 {[%emt 0:07:18]} 12. Nxd4 {[%emt 0:00:43]} Nc5 {[%emt 0:00:40]} 13. Qc2 {[%emt 0:02:32]} Bd7 {[%emt 0:00:39]} 14. Rad1 {[%emt 0:04:49]} Qc7 {[%emt 0:10:22]} 15. b4 {[%emt 0:21:19]} Ne6 {[%emt 0:00:09]} 16. c5 {[%emt 0:01:24]} dxc5 {[%emt 0:02:39]} 17. Nxe6 {[%emt 0:01:40]} Bxe6 {[%emt 0:00:50]} 18. Bxc5 {[%emt 0:02:43]} Rad8 {[%emt 0:03:41]} 19. Na4 {[%emt 0:05:11]} b5 {[%emt 0:03:29]} 20. Nc3 {[%emt 0:04:35]} Nd7 {[%emt 0:03:27]} 21. Bd6 {[%emt 0:04:50]} Qc8 {[%emt 0:10:29]} 22. Ne2 {[%emt 0:03:49]} Ne5 {[%emt 0:03:35]} 23. Kh2 {[%emt 0:04:37]} Nc4 {[%emt 0:08:43]} 24. Bc5 {[%emt 0:00:34]} h5 {[%emt 0:06:01]} 25. h4 {[%emt 0:08:40]} Ne5 {[%emt 0:01:52]} 26. f3 {[%emt 0:02:07]} Bc4 {[%emt 0:02:08]} 27. Nd4 {[%emt 0:01:19]} Nd7 {[%emt 0:06:58]} 28. Nb3 {[%emt 0:02:42]} Nxc5 {[%emt 0:02:16]} 29. Nxc5 {[%emt 0:00:06]} a5 {[%emt 0:09:11]} 30. bxa5 {[%emt 0:01:38]} Qc7 {[%emt 0:00:50]} 31. Nb3 {[%emt 0:03:30]} Bf8 {[%emt 0:04:19]} 32. Rxd8 {[%emt 0:01:27]} Rxd8 {[%emt 0:00:44]} 33. Rd1 {[%emt 0:00:44]} Bb4 {[%emt 0:03:23]} 34. f4 {[%emt 0:02:54]} Bxa5 {[%emt 0:00:50]} 35. Nxa5 {[%emt 0:01:28]} Qxa5 {[%emt 0:00:04]} 36. Rxd8+ {[%emt 0:00:30]} Qxd8 {[%emt 0:00:05]} 37. e5 {[%emt 0:00:24]} Qa8 {[%emt 0:01:28]} 38. a3 {[%emt 0:01:37]} Qxa3 {[%emt 0:01:04]} 39. Bxc6 {[%emt 0:00:12]} Bd3 {[%emt 0:03:45]} 40. Qd1 {[%emt 0:03:50]} b4 {[%emt 0:02:08]} 41. Bd5 {[%emt 0:02:56]} Qb2+ {[%emt 0:00:40]} 42. Kh1 {[%emt 0:00:40]} Qc2 {[%emt 0:00:59]} 43. Qa1 {[%emt 0:06:24]} Be4+ {[%emt 0:04:40]} 44. Bxe4 {[%emt 0:00:13]} Qxe4+ {[%emt 0:00:03]} 45. Kh2 {[%emt 0:02:36]} b3 {[%emt 0:00:11]} 46. Qa7 {[%emt 0:01:29]} Qc2+ {[%emt 0:01:13]} 0-1